Name,Sub Code,Service Area,Expense Type,Narrative,Date,Transaction Number,Amount,Supplier Name,Supplier Ref,Period,Year
Allerdale Borough Council,15506,Supplies & Services,Communications and Marketing,Professional Services,04/11/2015,141881,"1,800.00",ELSWORTH COMMUNICATIONS,A01869,8,2015
Allerdale Borough Council,16100,Supplies & Services,Communications and Marketing,Budget-Advertising and Promotions,04/11/2015,141882,316.00,FIRPRESS PRINTERS,A00063,8,2015
Allerdale Borough Council,16100,Supplies & Services,Communications and Marketing,Budget-Advertising and Promotions,04/11/2015,141883,60.00,FIRPRESS PRINTERS,A00063,8,2015
Allerdale Borough Council,12402,Premises,Carnegie Trust Contribution,Electricity,04/11/2015,141884,172.41,N POWER,X00015,8,2015
Allerdale Borough Council,12402,Premises,Corporate Property Maintenance,Electricity,04/11/2015,141885,37.65,BRITISH GAS,X00039,8,2015
Allerdale Borough Council,12402,Premises,Corporate Property Maintenance,Electricity,04/11/2015,141886,27.12,BRITISH GAS,X00039,8,2015
Allerdale Borough Council,14101,Transport,Mayoral Services,Vehicle Leasing,04/11/2015,141887,80.00,ACE TAXIS,A01927,8,2015
Allerdale Borough Council,14202,Transport,Housing & Health Pay Group,Hire Car and petrol,11/11/2015,141888,59.58,ENTERPRISE RENT A CAR,A01367,8,2015
Allerdale Borough Council,15203,Supplies & Services,Members Services,Catering Costs and Consumables,18/11/2015,141889,375.22,KENT AND SUSSEX VENDING,A02127,8,2015
Allerdale Borough Council,10605,Employee Costs,Training,Travel,11/11/2015,141890,45.98,ENTERPRISE RENT A CAR,A01367,8,2015
Allerdale Borough Council,15203,Supplies & Services,Members Services,Catering Costs and Consumables,18/11/2015,141891,24.79,KENT AND SUSSEX VENDING,A02127,8,2015
Allerdale Borough Council,15201,Supplies & Services,Director of Operations,Entertainment Of Visitors,11/11/2015,141892,111.85,ENTERPRISE RENT A CAR,A01367,8,2015
Allerdale Borough Council,14202,Transport,Director of Resources & PA,Hire Car and petrol,11/11/2015,141893,169.64,ENTERPRISE RENT A CAR,A01367,8,2015
Allerdale Borough Council,10401,Employee Costs,Building Control - Chargeable,Agency Staff Costs,11/11/2015,141894,180.00,THE OYSTER PARTNERSHIP LTD,C00118,8,2015
Allerdale Borough Council,15506,Supplies & Services,Carnegie Trust Contribution,Professional Services,25/11/2015,141895,40.00,BROCKBANK SOLICITORS,A01761,8,2015
Allerdale Borough Council,15803,Supplies & Services,IT Costs (Allerdale Only),Hardware Purchase,19/11/2015,141896,"2,113.90",BARCLAYCARD COMMERCIAL,X00207,8,2015
Allerdale Borough Council,54105,Capital Expenditure,Disabled Facilities Grants,Grants  Private Individuals (Capital),04/11/2015,141897,"3,335.00",THYSSEN KRUPP ENCASA A DIVISION OF THYSSENKRUPP LIMITED,X00105,8,2015
Allerdale Borough Council,15502,Supplies & Services,Legal Services,Land Registry Fees,05/01/2016,141898,54.00,HM LAND REGISTRY,A00505,8,2015
Allerdale Borough Council,15502,Supplies & Services,Legal Services,Land Registry Fees,03/11/2015,141899,27.00,HM LAND REGISTRY ,A00505,8,2015
Allerdale Borough Council,16100,Supplies & Services,Communications and Marketing,Budget-Advertising and Promotions,04/11/2015,141900,350.00,FIRPRESS PRINTERS,A00063,8,2015
Allerdale Borough Council,15101,Supplies & Services,Public Convenience Cleaning,Equipment Costs,04/11/2015,141901,868.40,INSTOCK (CHANDLERS),A00050,8,2015
Allerdale Borough Council,12303,Premises,Corporate Property Maintenance,Window Cleaning,11/11/2015,141902,450.00,BORDERBRITE LTD,C00155,8,2015
Allerdale Borough Council,15506,Supplies & Services,Environmental Protection,Professional Services,18/11/2015,141903,975.00,HOARE LEA AND PARTNERS,A02212,8,2015
Allerdale Borough Council,15506,Supplies & Services,Food and Occupational Health,Professional Services,11/11/2015,141904,187.95,PUBLIC HEALTH ENGLAND,A01839,8,2015
Allerdale Borough Council,14101,Transport,Mayoral Services,Vehicle Leasing,04/11/2015,141905,30.00,ACE TAXIS,A01927,8,2015
Allerdale Borough Council,14101,Transport,Mayoral Services,Vehicle Leasing,04/11/2015,141906,30.00,ACE TAXIS,A01927,8,2015
Allerdale Borough Council,10601,Employee Costs,Training,External Courses & Seminar Fees,04/11/2015,141907,"3,200.00",SOUTH LAKELAND DISTRICT COUNCIL,A00569,8,2015
Allerdale Borough Council,15808,Supplies & Services,Multi-functional Printers,Computer Consumables,11/11/2015,141908,372.95,HANDSET SOLUTIONS,A01900,8,2015
Allerdale Borough Council,16300,Supplies & Services,Economic Regeneration,Budget-Miscellaneous,04/11/2015,141909,31.50,FIRPRESS PRINTERS,A00063,8,2015
Allerdale Borough Council,15808,Supplies & Services,Multi-functional Printers,Computer Consumables,11/11/2015,141910,181.88,TWOFOLD LTD,A00317,8,2015
Allerdale Borough Council,15404,Supplies & Services,Legal Services,Reference Materials,25/11/2015,141911,284.00,SWEET & MAXWELL (THOMSON REUTERS),A00028,8,2015
Allerdale Borough Council,10601,Employee Costs,Training,External Courses & Seminar Fees,25/11/2015,141912,800.00,ARVATO LIMITED,A02195,8,2015
Allerdale Borough Council,15101,Supplies & Services,Corporate Property Maintenance,Equipment Costs,25/11/2015,141913,198.00,ARCO LIMITED - HEAD OFFICE HULL,A00045,8,2015
Allerdale Borough Council,12203,Premises,Public Convenience Cleaning,Plumbing and Heating Maintenance,04/11/2015,141914,397.00,Redacted information - included personal information ,C00008,8,2015
Allerdale Borough Council,15811,Supplies & Services,IT Services,Software Maintenance,16/11/2015,141915,264.99,SAGE (UK) LTD,A01911,8,2015
Allerdale Borough Council,15405,Supplies & Services,Members Services,Use of External Printers,11/11/2015,141916,755.00,FIRPRESS PRINTERS,A00063,8,2015
Allerdale Borough Council,12309,Premises,Corporate Property Maintenance,Fire and Safety,11/11/2015,141917,"1,002.85",PRO-TEC SYSTEMS,C00026,8,2015
Allerdale Borough Council,15602,Supplies & Services,Human Resources Pay Group,Business Reply Licences,04/11/2015,141918,50.00,ROYAL MAIL LETTERS,X00021,8,2015
Allerdale Borough Council,16150,Supplies & Services,Solway Wetlands Project,General Promotions,04/11/2015,141919,"-1,590.88",CUMBRIAN STONE LTD,A02197,8,2015
Allerdale Borough Council,15203,Supplies & Services,Members Services,Catering Costs and Consumables,20/01/2016,141920,394.06,KENT AND SUSSEX VENDING,A02127,8,2015
Allerdale Borough Council,12408,Premises,Public Convenience Cleaning,Water & Sewage,04/11/2015,141921,257.77,UNITED UTILITIES ,X00011,8,2015
Allerdale Borough Council,15203,Supplies & Services,Members Services,Catering Costs and Consumables,20/01/2016,141922,-394.06,KENT AND SUSSEX VENDING,A02127,8,2015
Allerdale Borough Council,15501,Supplies & Services,Estates,Consultants Fees,11/11/2015,141923,"1,600.00",HAYS SPECIALIST RECRUITMENT LTD,A00280,8,2015
Allerdale Borough Council,15501,Supplies & Services,Estates,Consultants Fees,18/11/2015,141924,"1,600.00",HAYS SPECIALIST RECRUITMENT LTD,A00280,8,2015
Allerdale Borough Council,10101,Employee Costs,Shared IT Services Pay Group,Basic Pay,04/11/2015,141925,"2,250.00",COMPUTER FUTURES,A02193,8,2015
Allerdale Borough Council,15101,Supplies & Services,Corporate Property Maintenance,Equipment Costs,04/11/2015,141926,163.20,TELK LTD,A01670,8,2015
Allerdale Borough Council,15401,Supplies & Services,Electoral Registration,General Stationery,04/11/2015,141927,"5,926.76",ELECTORAL REFORM SERVICES LTD,A02248,8,2015
Allerdale Borough Council,15401,Supplies & Services,Electoral Registration,General Stationery,04/11/2015,141928,"1,646.18",ELECTORAL REFORM SERVICES LTD,A02248,8,2015
Allerdale Borough Council,15516,Supplies & Services,Insurances,Insurance Services,25/11/2015,141929,"5,000.00",BLUEFIN INSURANCE SERVICES LTD,A01716,8,2015
Allerdale Borough Council,14104,Transport,Street Cleansing,Repairs & Maintenance,04/11/2015,141930,18.78,FCC ENVIRONMENT SERVICES (FOCSA),A00085,8,2015
Allerdale Borough Council,10401,Employee Costs,Licensing Pay Group,Agency Staff Costs,11/11/2015,141931,432.53,ADECCO RECRUITMENT,A00188,8,2015
Allerdale Borough Council,12201,Premises,Homelessness,Internal Maintenance,04/11/2015,141932,34.30,TRAVIS PERKINS,A00742,8,2015
Allerdale Borough Council,12201,Premises,Homelessness,Internal Maintenance,04/11/2015,141933,34.30,TRAVIS PERKINS,A00742,8,2015
Allerdale Borough Council,10401,Employee Costs,Building Control - Chargeable,Agency Staff Costs,18/11/2015,141934,225.00,THE OYSTER PARTNERSHIP LTD,C00118,8,2015
Allerdale Borough Council,10401,Employee Costs,Licensing Pay Group,Agency Staff Costs,11/11/2015,141935,344.86,ADECCO RECRUITMENT,A00188,8,2015
Allerdale Borough Council,10100,Employee Costs,Customer Services Pay Group,Budget-Salaries,11/11/2015,141936,493.58,ADECCO RECRUITMENT,A00188,8,2015
Allerdale Borough Council,12202,Premises,Corporate Property Maintenance,Electrical Repairs and Service,04/11/2015,141937,"1,564.68",CITY ELECTRICAL FACTORS,A00395,8,2015
Allerdale Borough Council,12202,Premises,Corporate Property Maintenance,Electrical Repairs and Service,04/11/2015,141938,"1,415.40",CITY ELECTRICAL FACTORS,A00395,8,2015
Allerdale Borough Council,12201,Premises,Corporate Property Maintenance,Internal Maintenance,25/11/2015,141939,448.00,BARRIE HAIGH PAINTING CONTRACTOR,A01607,8,2015
Allerdale Borough Council,12201,Premises,Public Convenience Cleaning,Internal Maintenance,11/11/2015,141940,"1,000.00",NORTH WEST LAKES PROPERTY CLEANING,C00159,8,2015
Allerdale Borough Council,12405,Premises,Customer Services Pay Group,Rentals and Lease Charges,25/11/2015,141941,591.94,SOLWAY PLAIN FUTURES LTD,A01194,8,2015
Allerdale Borough Council,16102,Supplies & Services,Town Centre Management,Regeneration Initiatives,04/11/2015,141942,150.00,COCKERMOUTH CHAMBER OF TRADE,A01807,8,2015
Allerdale Borough Council,20100,Third Party Payments,Environmental Initiatives,Budget-Partnership Services,04/11/2015,141943,"10,000.00",SUSTRANS LIMITED,A00490,8,2015
Allerdale Borough Council,15100,Supplies & Services,Revenue,"Budget-Equipment, Furniture & Materials",04/11/2015,141944,75.00,Redacted information - included personal information ,M00803,8,2015
Allerdale Borough Council,16150,Supplies & Services,Solway Coast Volunteer Support,General Promotions,04/11/2015,141945,91.15,ALLERDALE BOROUGH COUNCIL - AONB,X00216,8,2015
Allerdale Borough Council,15507,Supplies & Services,Land Charges Service,Searches,04/11/2015,141946,"2,820.00",CUMBRIA CC - GENERAL,A00066,8,2015
Allerdale Borough Council,12405,Premises,Homelessness,Rentals and Lease Charges,18/11/2015,141947,"9,145.37",DERWENT & SOLWAY (BACS &DIRECT DEBIT),A00219,8,2015
Allerdale Borough Council,12403,Premises,Homelessness,Gas,25/11/2015,141948,128.00,MEPOS LIMITED,A01286,8,2015
Allerdale Borough Council,15508,Supplies & Services,Environmental Initiatives,Subscriptions,04/11/2015,141949,430.00,KENT COUNTY COUNCIL,A02189,8,2015
Allerdale Borough Council,12305,Premises,Corporate Property Maintenance,Inspections and Services,25/11/2015,141950,192.00,GILGEN DOOR SYSTEMS UK LTD,A00542,8,2015
Allerdale Borough Council,15506,Supplies & Services,KMAG Enhancement Activity,Professional Services,25/11/2015,141951,547.47,Redacted information - included personal information ,A02055,8,2015
Allerdale Borough Council,15550,Supplies & Services,Out of Hours Telephones,General-Service Related Fees,25/11/2015,141952,650.60,ORBIS PROTECT LTD (PREV SITEXORBIS LIMITED),A00679,8,2015
Allerdale Borough Council,12101,Premises,Corporate Property Maintenance,External Maintenance & Decoration,04/11/2015,141953,96.00,Redacted information - included personal information ,C00008,8,2015
Allerdale Borough Council,15404,Supplies & Services,Legal Services,Reference Materials,04/11/2015,141954,55.00,JORDAN PUBLISHING LIMITED,A01084,8,2015
Allerdale Borough Council,12402,Premises,Corporate Property Maintenance,Electricity,04/11/2015,141955,21.71,BRITISH GAS,X00039,8,2015
Allerdale Borough Council,15501,Supplies & Services,Environmental Initiatives,Consultants Fees,04/11/2015,141956,721.52,WYG PLANNING & DESIGN,A00682,8,2015
Allerdale Borough Council,52106,Capital Expenditure,New Leisure Facility,Consultants Fees (Capital),11/11/2015,141957,"5,531.59",PICK EVERARD,A02007,8,2015
Allerdale Borough Council,20150,Third Party Payments,Carnegie Trust Contribution,General Partnership Service Fees,04/11/2015,141958,"15,000.00",Carnegie Theatre Trust,R00015,8,2015
Allerdale Borough Council,14105,Transport,Parking Services Pay Group,"Fuel, Lubricants & Consumables",19/11/2015,141959,498.01,BP OIL UK LTD,X00022,8,2015
Allerdale Borough Council,14101,Transport,Shared IT Services Pay Group,Vehicle Leasing,09/12/2015,141960,199.00,ARNOLD CLARK FINANCE LIMITED,A01781,8,2015
Allerdale Borough Council,15803,Supplies & Services,IT Costs (Allerdale Only),Hardware Purchase,11/11/2015,141961,"3,286.80",STORM TECHNOLOGIES,A01018,8,2015
Allerdale Borough Council,15806,Supplies & Services,IT Services,Computer Agencies,11/11/2015,141962,"2,300.00",RANDOMSTORM LTD,A01609,8,2015
Allerdale Borough Council,15802,Supplies & Services,Shared ICT Costs,Hardware Maintenance,18/11/2015,141963,"1,033.32",NETCENTRIX LIMITED,A00106,8,2015
Allerdale Borough Council,15808,Supplies & Services,IT Services,Computer Consumables,18/11/2015,141964,67.50,MISCO,A00125,8,2015
Allerdale Borough Council,15808,Supplies & Services,IT Services,Computer Consumables,18/11/2015,141965,2.04,MISCO,A00125,8,2015
Allerdale Borough Council,10202,Employee Costs,Human Resources Pay Group,Medical Screening,18/11/2015,141966,424.36,WELLWORK LTD,A00029,8,2015
Allerdale Borough Council,10601,Employee Costs,Training,External Courses & Seminar Fees,18/11/2015,141967,"3,758.00",INST OF INT AUDITORS UK & IRELAND,A00299,8,2015
Allerdale Borough Council,10202,Employee Costs,Human Resources Pay Group,Medical Screening,11/11/2015,141968,424.36,WELLWORK LTD,A00029,8,2015
Allerdale Borough Council,15808,Supplies & Services,IT Services,Computer Consumables,25/11/2015,141969,90.72,MISCO,A00125,8,2015
Allerdale Borough Council,15101,Supplies & Services,Pest Control,Equipment Costs,18/11/2015,141970,"1,120.02",KILLGERM CHEMICALS LTD,A00361,8,2015
Allerdale Borough Council,15301,Supplies & Services,Workington Nature Partnership,Uniforms,11/11/2015,141971,20.60,ARCO LIMITED - HEAD OFFICE HULL,A00045,8,2015
Allerdale Borough Council,15506,Supplies & Services,Legal Services,Professional Services,11/11/2015,141972,55.00,BURNETTS SOLICITORS,A00129,8,2015
Allerdale Borough Council,15804,Supplies & Services,IT Services,Computer Data Lines B.T.,11/11/2015,141973,"3,784.35",BRITISH TELECOMMUNICATIONS,X00004,8,2015
Allerdale Borough Council,15704,Supplies & Services,IT Services,Mobile Phones,11/11/2015,141974,"1,135.07",VODAFONE,A00551,8,2015
Allerdale Borough Council,15703,Supplies & Services,IT Services,Call Charges,25/11/2015,141975,932.63,VODAFONE (PREV CABLE & WIRELESS),A00934,8,2015
Allerdale Borough Council,34150,Income,Building Control - Chargeable,General Recovery of Other Costs-Income,11/11/2015,141976,15.00,BROCKBANK SOLICITORS,A01761,8,2015
Allerdale Borough Council,10101,Employee Costs,Shared IT Services Pay Group,Basic Pay,11/11/2015,141977,"2,250.00",COMPUTER FUTURES,A02193,8,2015
Allerdale Borough Council,15101,Supplies & Services,Solway Wetlands Project,Equipment Costs,18/11/2015,141978,179.12,YORKSHIRE PURCHASING ORGANISATION,A00747,8,2015
Allerdale Borough Council,15550,Supplies & Services,Arts Development,General-Service Related Fees,25/11/2015,141979,26.67,TROPHIES SPORT & LEISURE LTD,A01704,8,2015
Allerdale Borough Council,15506,Supplies & Services,Legal Services,Professional Services,25/11/2015,141980,750.00,WYG ENGINEERING LTD,A00155,8,2015
Allerdale Borough Council,16301,Supplies & Services,KMAG Enhancement Activity,Reimbursement,11/11/2015,141981,"1,122.00",KESWICK MUSEUM & ART GALLERY,A00337,8,2015
Allerdale Borough Council,16301,Supplies & Services,KMAG Enhancement Activity,Reimbursement,11/11/2015,141982,48.30,KESWICK MUSEUM & ART GALLERY,A00337,8,2015
Allerdale Borough Council,15401,Supplies & Services,Solway Coast AONB Core Funding,General Stationery,02/12/2015,141983,30.79,VIKING DIRECT,A00828,8,2015
Allerdale Borough Council,14104,Transport,Public Convenience Cleaning,Repairs & Maintenance,11/11/2015,141984,40.83,GOODFELLOW & SONS,A00031,8,2015
Allerdale Borough Council,15501,Supplies & Services,Homelessness,Consultants Fees,11/11/2015,141985,35.00,Redacted information - included personal information ,A00482,8,2015
Allerdale Borough Council,10202,Employee Costs,Human Resources Pay Group,Medical Screening,11/11/2015,141986,316.73,WELLWORK LTD,A00029,8,2015
Allerdale Borough Council,16302,Supplies & Services,Elections,Room Hire,11/11/2015,141987,65.00,LOW MOOR EVANGELICAL CHURCH,M00098,8,2015
Allerdale Borough Council,16302,Supplies & Services,Elections,Room Hire,11/11/2015,141988,70.00,WIGTON METHODIST CHURCH,M00804,8,2015
Allerdale Borough Council,16302,Supplies & Services,Elections,Room Hire,11/11/2015,141989,60.00,STONHAM,M00805,8,2015
Allerdale Borough Council,16350,Supplies & Services,Health & Wellbeing Group,Miscellaneous Expenses,11/11/2015,141990,84.00,ASDA PHARMACY,M00806,8,2015
Allerdale Borough Council,15500,Supplies & Services,Economic Regeneration,Budget-Services,11/11/2015,141991,"1,200.00",BRIT ENERGY COAST BUSINESS CLUSTER,A01648,8,2015
Allerdale Borough Council,15506,Supplies & Services,Environmental Protection,Professional Services,25/11/2015,141993,202.50,UNITED UTILITIES PLC,A01657,8,2015
Allerdale Borough Council,15508,Supplies & Services,Pest Control,Subscriptions,25/11/2015,141994,20.00,BASIS (REGISTRATION) LTD,A01568,8,2015
Allerdale Borough Council,15810,Supplies & Services,IT Services,Software Licences,18/11/2015,141995,212.50,FARONICS EMEA LTD,A02253,8,2015
Allerdale Borough Council,15101,Supplies & Services,Public Building Cleaning,Equipment Costs,25/11/2015,141996,116.32,ARCO LIMITED - HEAD OFFICE HULL,A00045,8,2015
Allerdale Borough Council,15101,Supplies & Services,Public Building Cleaning,Equipment Costs,25/11/2015,141997,14.40,ARCO LIMITED - HEAD OFFICE HULL,A00045,8,2015
Allerdale Borough Council,15808,Supplies & Services,IT Services,Computer Consumables,25/11/2015,141998,10.08,MISCO,A00125,8,2015
Allerdale Borough Council,15601,Supplies & Services,Benefits,Postage,11/11/2015,141999,"1,540.80",ROYAL MAIL LETTERS,X00021,8,2015
Allerdale Borough Council,20150,Third Party Payments,Multi-storey Car Park,General Partnership Service Fees,11/11/2015,142000,"39,696.50",PARKSAFE,A00647,8,2015
Allerdale Borough Council,12403,Premises,Corporate Property Maintenance,Gas,11/11/2015,142001,55.37,BRITISH GAS,X00039,8,2015
Allerdale Borough Council,15804,Supplies & Services,IT Services,Computer Data Lines B.T.,25/11/2015,142002,"1,642.21",VODAFONE (PREV CABLE & WIRELESS),A00934,8,2015
Allerdale Borough Council,15604,Supplies & Services,Document Management Pay Group,Franking Machine refills,11/11/2015,142003,40.00,ROYAL MAIL LETTERS,X00021,8,2015
Allerdale Borough Council,10401,Employee Costs,Head of Governance,Agency Staff Costs,11/11/2015,142004,23.60,VENN GROUP,A01836,8,2015
Allerdale Borough Council,10401,Employee Costs,Head of Governance,Agency Staff Costs,11/11/2015,142005,28.32,VENN GROUP,A01836,8,2015
Allerdale Borough Council,10401,Employee Costs,Head of Governance,Agency Staff Costs,11/11/2015,142006,30.68,VENN GROUP,A01836,8,2015
Allerdale Borough Council,10401,Employee Costs,Head of Governance,Agency Staff Costs,11/11/2015,142007,1.56,VENN GROUP,A01836,8,2015
Allerdale Borough Council,10401,Employee Costs,Head of Governance,Agency Staff Costs,11/11/2015,142008,5.90,VENN GROUP,A01836,8,2015
Allerdale Borough Council,10401,Employee Costs,Head of Governance,Agency Staff Costs,11/11/2015,142009,4.72,VENN GROUP,A01836,8,2015
Allerdale Borough Council,10401,Employee Costs,Head of Governance,Agency Staff Costs,11/11/2015,142010,33.04,VENN GROUP,A01836,8,2015
Allerdale Borough Council,10401,Employee Costs,Head of Governance,Agency Staff Costs,11/11/2015,142011,25.96,VENN GROUP,A01836,8,2015
Allerdale Borough Council,10401,Employee Costs,Head of Governance,Agency Staff Costs,11/11/2015,142012,14.16,VENN GROUP,A01836,8,2015
Allerdale Borough Council,12101,Premises,Corporate Property Maintenance,External Maintenance & Decoration,11/11/2015,142013,"4,045.00",ROBERT SCOTT LTD,X00160,8,2015
Allerdale Borough Council,15803,Supplies & Services,IT Services,Hardware Purchase,18/11/2015,142014,147.54,STORM TECHNOLOGIES,A01018,8,2015
Allerdale Borough Council,10202,Employee Costs,Health and Safety,Medical Screening,11/11/2015,142015,170.00,SPECSAVERS,A00026,8,2015
Allerdale Borough Council,10401,Employee Costs,Elections,Agency Staff Costs,02/12/2015,142016,"9,508.40",ASSOCIATION OF ELECTORAL ADMIN,A00189,8,2015
Allerdale Borough Council,73102,Holding and Control Accounts,Busy Bees Childcare Scheme,Holding Accounts General - Expenditure,18/11/2015,142017,117.87,COMPUTERSHARE VOUCHER SERVICES,A00991,8,2015
Allerdale Borough Council,73102,Holding and Control Accounts,Busy Bees Childcare Scheme,Holding Accounts General - Expenditure,18/11/2015,142018,"2,143.00",COMPUTERSHARE VOUCHER SERVICES,A00991,8,2015
Allerdale Borough Council,15101,Supplies & Services,Recycling,Equipment Costs,02/12/2015,142019,"7,600.32",PLASTIC OMNIUM URBAN SYSTEMS LTD,A00159,8,2015
Allerdale Borough Council,20101,Third Party Payments,Recycling,Cleansing Contract,25/11/2015,142020,929.04,CUMBRIA WASTE MANAGEMENT LTD,A01304,8,2015
Allerdale Borough Council,20101,Third Party Payments,Recycling,Cleansing Contract,25/11/2015,142021,"2,523.78",CUMBRIA WASTE MANAGEMENT LTD,A01304,8,2015
Allerdale Borough Council,20101,Third Party Payments,Recycling,Cleansing Contract,25/11/2015,142022,"2,391.06",CUMBRIA WASTE MANAGEMENT LTD,A01304,8,2015
Allerdale Borough Council,20101,Third Party Payments,Recycling,Cleansing Contract,25/11/2015,142023,"2,678.76",CUMBRIA WASTE MANAGEMENT LTD,A01304,8,2015
Allerdale Borough Council,20101,Third Party Payments,Recycling,Cleansing Contract,25/11/2015,142024,"2,475.48",CUMBRIA WASTE MANAGEMENT LTD,A01304,8,2015
Allerdale Borough Council,20101,Third Party Payments,Recycling,Cleansing Contract,25/11/2015,142025,"2,272.85",CUMBRIA WASTE MANAGEMENT LTD,A01304,8,2015
Allerdale Borough Council,15102,Supplies & Services,Domestic Waste,Equipment Repair & Maintenance,11/11/2015,142026,957.90,Redacted information - included personal information ,A00176,8,2015
Allerdale Borough Council,20305,Third Party Payments,Maryport Wave,Contract Services-Leisure Centres,11/11/2015,142027,"63,223.50",GREENWICH LEISURE LTD (PREV CARLISLE LEISURE),A00136,8,2015
Allerdale Borough Council,20101,Third Party Payments,Weekly Collection Support Scheme,Cleansing Contract,11/11/2015,142028,"10,500.00",FCC ENVIRONMENT SERVICES (FOCSA),A00085,8,2015
Allerdale Borough Council,20304,Third Party Payments,Recycling,Contract Services-Recycling,11/11/2015,142029,"375,590.01",FCC ENVIRONMENT SERVICES (FOCSA),A00085,8,2015
Allerdale Borough Council,15513,Supplies & Services,Animal Welfare,Subcontractors - General,11/11/2015,142030,18.96,MILLCROFT VETERINARY GROUP,A00211,8,2015
Allerdale Borough Council,15506,Supplies & Services,Legal Services,Professional Services,11/11/2015,142031,133.00,BEVAN BRITTAN LLP,A02181,8,2015
Allerdale Borough Council,12101,Premises,Car Parks Inspection & Maintenance,External Maintenance & Decoration,11/11/2015,142032,190.00,UNBLOCK CUMBRIA LTD,C00005,8,2015
Allerdale Borough Council,12305,Premises,Corporate Property Maintenance,Inspections and Services,11/11/2015,142033,237.00,AQUAID (NORTH),A00123,8,2015
Allerdale Borough Council,15505,Supplies & Services,Planning and Development,Licences,25/11/2015,142034,66.24,CENTREMAPS,A00512,8,2015
Allerdale Borough Council,10100,Employee Costs,Customer Services Pay Group,Budget-Salaries,18/11/2015,142035,493.58,ADECCO RECRUITMENT,A00188,8,2015
Allerdale Borough Council,12101,Premises,Car Parks Inspection & Maintenance,External Maintenance & Decoration,11/11/2015,142036,"1,019.00",Redacted information - included personal information ,C00008,8,2015
Allerdale Borough Council,15502,Supplies & Services,Legal Services,Land Registry Fees,06/11/2015,142037,54.00,HM LAND REGISTRY,A00505,8,2015
Allerdale Borough Council,15502,Supplies & Services,Legal Services,Land Registry Fees,10/11/2015,142038,12.00,HM LAND REGISTRY,A00505,8,2015
Allerdale Borough Council,54105,Capital Expenditure,Disabled Facilities Grants,Grants  Private Individuals (Capital),11/11/2015,142039,"3,365.00",DOLPHIN STAIRLIFTS CUMBRIA,X00107,8,2015
Allerdale Borough Council,54105,Capital Expenditure,Disabled Facilities Grants,Grants  Private Individuals (Capital),11/11/2015,142040,"2,095.00",BLUE FLAME SERVICES LTD,X00213,8,2015
Allerdale Borough Council,15550,Supplies & Services,Arts Development,General-Service Related Fees,11/11/2015,142041,528.00,HONISTER SLATE MINE,A01700,8,2015
Allerdale Borough Council,15103,Supplies & Services,Arts Development,Purchase of Materials,11/11/2015,142042,53.00,Redacted information - included personal information ,A02262,8,2015
Allerdale Borough Council,15506,Supplies & Services,Arts Development,Professional Services,02/12/2015,142043,800.00,Redacted information - included personal information ,A02260,8,2015
Allerdale Borough Council,12402,Premises,Corporate Property Maintenance,Electricity,11/11/2015,142044,28.35,BES COMMERCIAL ELECTRICITY LTD,X00243,8,2015
Allerdale Borough Council,12402,Premises,Corporate Property Maintenance,Electricity,11/11/2015,142045,490.83,N POWER,X00015,8,2015
Allerdale Borough Council,15203,Supplies & Services,Arts Development,Catering Costs and Consumables,11/11/2015,142046,"1,168.00",THE SOLWAY CATERING COMPANY LTD,A01902,8,2015
Allerdale Borough Council,14105,Transport,Parking Services Pay Group,"Fuel, Lubricants & Consumables",,142047,499.70,BP OIL UK LTD,X00022,8,2015
Allerdale Borough Council,15501,Supplies & Services,Estates,Consultants Fees,25/11/2015,142048,"1,639.15",HAYS SPECIALIST RECRUITMENT LTD,A00280,8,2015
Allerdale Borough Council,35103,Income,Tenanted Properties,Other Land and Buildings Income,18/11/2015,142049,160.00,BURNETTS SOLICITORS,A00129,8,2015
Allerdale Borough Council,15101,Supplies & Services,Solway Wetlands Project,Equipment Costs,25/11/2015,142050,915.13,VAN WALT LIMITED,A02257,8,2015
Allerdale Borough Council,15101,Supplies & Services,Solway Wetlands Project,Equipment Costs,25/11/2015,142051,84.88,THE OUTDOORS COMPANY,A01066,8,2015
Allerdale Borough Council,10601,Employee Costs,Training,External Courses & Seminar Fees,18/11/2015,142052,"3,987.50",IMPROVEMENT DEVELOPMENT GROWTH,A01529,8,2015
Allerdale Borough Council,10601,Employee Costs,Training,External Courses & Seminar Fees,18/11/2015,142053,300.00,Redacted information - included personal information ,A02232,8,2015
Allerdale Borough Council,10601,Employee Costs,Training,External Courses & Seminar Fees,25/11/2015,142054,220.00,UPKEEP TRAINING/ASSET SKILLS TRAINING,A02258,8,2015
Allerdale Borough Council,15506,Supplies & Services,Environmental Protection,Professional Services,18/11/2015,142055,180.00,ENZYGO LTD,A02201,8,2015
Allerdale Borough Council,15506,Supplies & Services,Food and Occupational Health,Professional Services,18/11/2015,142056,258.17,MILLCROFT VETERINARY GROUP,A00211,8,2015
Allerdale Borough Council,15102,Supplies & Services,Parking Services Pay Group,Equipment Repair & Maintenance,18/11/2015,142057,398.68,Redacted information - included personal information ,M00807,8,2015
Allerdale Borough Council,14105,Transport,Parking Services Pay Group,"Fuel, Lubricants & Consumables",,142058,354.50,BP OIL UK LTD ,X00022,8,2015
Allerdale Borough Council,54105,Capital Expenditure,Disabled Facilities Grants,Grants  Private Individuals (Capital),18/11/2015,142059,"2,380.00",HANDICARE ACCESSIBILITY LTD,X00211,8,2015
Allerdale Borough Council,15502,Supplies & Services,Legal Services,Land Registry Fees,17/11/2015,142060,72.00,HM LAND REGISTRY,A00505,8,2015
Allerdale Borough Council,15506,Supplies & Services,Legal Services,Professional Services,25/11/2015,142061,"1,892.25",SELLICK PARTNERSHIP,A01993,8,2015
Allerdale Borough Council,15808,Supplies & Services,Multi-functional Printers,Computer Consumables,25/11/2015,142062,24.99,RICOH UK LTD,A00037,8,2015
Allerdale Borough Council,15401,Supplies & Services,Document Management Pay Group,General Stationery,25/11/2015,142063,232.23,LYRECO,A00043,8,2015
Allerdale Borough Council,15401,Supplies & Services,Document Management Pay Group,General Stationery,25/11/2015,142064,84.90,LYRECO,A00043,8,2015
Allerdale Borough Council,15401,Supplies & Services,Document Management Pay Group,General Stationery,25/11/2015,142065,107.37,LYRECO,A00043,8,2015
Allerdale Borough Council,15401,Supplies & Services,Document Management Pay Group,General Stationery,25/11/2015,142066,232.69,LYRECO,A00043,8,2015
Allerdale Borough Council,15401,Supplies & Services,Document Management Pay Group,General Stationery,25/11/2015,142067,301.98,LYRECO,A00043,8,2015
Allerdale Borough Council,15603,Supplies & Services,Document Management Pay Group,Franking Machine Costs,25/11/2015,142068,300.00,THE MAILING ROOM (TMR EXECUTIVE AGENCY LTD),A00733,8,2015
Allerdale Borough Council,16150,Supplies & Services,Town Centre Management,General Promotions,02/12/2015,142069,25.00,POD (NORTH WEST) LIMITED,A01977,8,2015
Allerdale Borough Council,21150,Transfer Payments,Festivals & Community Events,General Grants,18/11/2015,142070,"12,500.00",CN EVENTS MANAGEMENT,A01099,8,2015
Allerdale Borough Council,15511,Supplies & Services,Street Cleansing,Removal of Vehicles,18/11/2015,142071,200.00,MICHAEL DOUGLAS AUTO SALVAGE,A00078,8,2015
Allerdale Borough Council,16102,Supplies & Services,Town Centre Management,Regeneration Initiatives,18/11/2015,142072,50.00,RIVERSMEET COMMUNITY COOPERATIVE,A01806,8,2015
Allerdale Borough Council,14101,Transport,Mayoral Services,Vehicle Leasing,18/11/2015,142073,30.00,ACE TAXIS,A01927,8,2015
Allerdale Borough Council,14101,Transport,Mayoral Services,Vehicle Leasing,18/11/2015,142074,30.00,ACE TAXIS,A01927,8,2015
Allerdale Borough Council,15501,Supplies & Services,Revenue,Consultants Fees,25/11/2015,142075,593.60,CAPACITYGRID T/A LIBERATA UK LTD,C00122,8,2015
Allerdale Borough Council,15501,Supplies & Services,Homelessness,Consultants Fees,18/11/2015,142076,50.00,JAMES STREET GROUP PRACTICE,A00462,8,2015
Allerdale Borough Council,16300,Supplies & Services,Cumbria Tourism,Budget-Miscellaneous,18/11/2015,142077,"4,377.50",CUMBRIA TOURISM,A00477,8,2015
Allerdale Borough Council,12101,Premises,Corporate Property Maintenance,External Maintenance & Decoration,18/11/2015,142078,120.00,DESIGN GRID LTD,A01627,8,2015
Allerdale Borough Council,15101,Supplies & Services,Public Building Cleaning,Equipment Costs,02/12/2015,142079,59.86,ARCO LIMITED - HEAD OFFICE HULL,A00045,8,2015
Allerdale Borough Council,10401,Employee Costs,Building Control - Chargeable,Agency Staff Costs,02/12/2015,142080,90.00,THE OYSTER PARTNERSHIP LTD,C00118,8,2015
Allerdale Borough Council,10401,Employee Costs,Environmental Services Pay Group,Agency Staff Costs,25/11/2015,142081,"5,250.00",PRACTICUS LTD,A02237,8,2015
Allerdale Borough Council,15101,Supplies & Services,Footways,Equipment Costs,02/12/2015,142082,844.00,MAIN STREET SIGNS LIMITED,A00292,8,2015
Allerdale Borough Council,16150,Supplies & Services,Solway Wetlands Project,General Promotions,18/11/2015,142083,120.00,CUMBRIAN NEWSPAPERS LIMITED,A00869,8,2015
Allerdale Borough Council,16101,Supplies & Services,Planning and Development,Statutory Notices,25/11/2015,142084,209.80,CUMBRIA CC - 3C STUDIO,A00070,8,2015
Allerdale Borough Council,15101,Supplies & Services,Recycling,Equipment Costs,09/12/2015,142085,"1,534.68",PLASTIC OMNIUM URBAN SYSTEMS LTD,A00159,8,2015
Allerdale Borough Council,15101,Supplies & Services,Public Building Cleaning,Equipment Costs,25/11/2015,142086,475.90,INSTOCK (CHANDLERS),A00050,8,2015
Allerdale Borough Council,12101,Premises,Car Parks Inspection & Maintenance,External Maintenance & Decoration,18/11/2015,142087,751.00,Redacted information - included personal information ,C00008,8,2015
Allerdale Borough Council,15506,Supplies & Services,Community Safety,Professional Services,18/11/2015,142088,"1,350.00",ELLENVALE COACHES LTD,A02213,8,2015
Allerdale Borough Council,20101,Third Party Payments,Recycling,Cleansing Contract,18/11/2015,142089,599.06,CUMBRIA WASTE MANAGEMENT LTD,A01304,8,2015
Allerdale Borough Council,15103,Supplies & Services,Recycling,Purchase of Materials,09/12/2015,142090,"5,714.25",EGBERT H TAYLOR & COMPANY LTD,A01706,8,2015
Allerdale Borough Council,51101,Capital Expenditure,New Leisure Facility,External Contractor Payments (Capital),25/11/2015,142091,"680,694.40",WILLMOTT DIXON CAPITAL WORKS LTD,C00127,8,2015
Allerdale Borough Council,10100,Employee Costs,Customer Services Pay Group,Budget-Salaries,25/11/2015,142092,493.58,ADECCO RECRUITMENT,A00188,8,2015
Allerdale Borough Council,10401,Employee Costs,Commissioning Support Pay Group,Agency Staff Costs,09/12/2015,142093,"5,000.00",CASH FRIDAY/LORD SEARCH & SELECTION LTD,A02108,8,2015
Allerdale Borough Council,14202,Transport,Environmental Services Pay Group,Hire Car and petrol,18/11/2015,142094,49.58,ENTERPRISE RENT A CAR,A01367,8,2015
Allerdale Borough Council,16150,Supplies & Services,Solway Wetlands Project,General Promotions,18/11/2015,142095,380.00,Redacted information - included personal information ,M00312,8,2015
Allerdale Borough Council,72104,Holding and Control Accounts,Debtor Control Account,Debtors (Control Account),18/11/2015,142096,365.79,HOLCAR AUTO SERVICES LTD,A00014,8,2015
Allerdale Borough Council,16150,Supplies & Services,Solway Wetlands Project,General Promotions,18/11/2015,142097,88.16,ALLERDALE BOROUGH COUNCIL - AONB,X00216,8,2015
Allerdale Borough Council,15501,Supplies & Services,Coastal Community Teams,Consultants Fees,18/11/2015,142098,"5,000.00",BOWLES GREEN LIMITED,A00763,8,2015
Allerdale Borough Council,10401,Employee Costs,IT Services,Agency Staff Costs,18/11/2015,142099,385.27,ADECCO RECRUITMENT,A00188,8,2015
Allerdale Borough Council,10401,Employee Costs,IT Services,Agency Staff Costs,18/11/2015,142100,483.22,ADECCO RECRUITMENT,A00188,8,2015
Allerdale Borough Council,10401,Employee Costs,IT Services,Agency Staff Costs,18/11/2015,142101,391.80,ADECCO RECRUITMENT,A00188,8,2015
Allerdale Borough Council,20101,Third Party Payments,Recycling,Cleansing Contract,25/11/2015,142102,"2,355.66",CUMBRIA WASTE MANAGEMENT LTD,A01304,8,2015
Allerdale Borough Council,10110,Employee Costs,Chief Executive,Salary Sacrifice,18/11/2015,142103,"1,344.01",TUSKERDIRECT LTD,A02186,8,2015
Allerdale Borough Council,15600,Supplies & Services,Electoral Registration,Budget-Postal Services,18/11/2015,142104,784.92,ROYAL MAIL LETTERS,X00021,8,2015
Allerdale Borough Council,12408,Premises,Corporate Property Maintenance,Water & Sewage,18/11/2015,142105,7.61,UNITED UTILITIES,X00011,8,2015
Allerdale Borough Council,12408,Premises,Public Convenience Cleaning,Water & Sewage,18/11/2015,142106,375.36,UNITED UTILITIES,X00011,8,2015
Allerdale Borough Council,12408,Premises,Public Convenience Cleaning,Water & Sewage,18/11/2015,142107,62.19,UNITED UTILITIES,X00011,8,2015
Allerdale Borough Council,12408,Premises,Public Convenience Cleaning,Water & Sewage,18/11/2015,142108,234.45,UNITED UTILITIES,X00011,8,2015
Allerdale Borough Council,12402,Premises,Public Convenience Cleaning,Electricity,18/11/2015,142109,11.94,N POWER,X00015,8,2015
Allerdale Borough Council,12408,Premises,Corporate Property Maintenance,Water & Sewage,18/11/2015,142110,164.16,UNITED UTILITIES,X00011,8,2015
Allerdale Borough Council,12402,Premises,Public Convenience Cleaning,Electricity,18/11/2015,142111,70.51,N POWER,X00015,8,2015
Allerdale Borough Council,12402,Premises,Public Convenience Cleaning,Electricity,18/11/2015,142112,7.47,N POWER,X00015,8,2015
Allerdale Borough Council,12402,Premises,Public Convenience Cleaning,Electricity,18/11/2015,142113,675.96,N POWER,X00015,8,2015
Allerdale Borough Council,12402,Premises,Public Convenience Cleaning,Electricity,18/11/2015,142114,191.21,N POWER,X00015,8,2015
Allerdale Borough Council,12402,Premises,Corporate Property Maintenance,Electricity,18/11/2015,142115,6.04,N POWER,X00015,8,2015
Allerdale Borough Council,12402,Premises,Public Convenience Cleaning,Electricity,18/11/2015,142116,7.47,N POWER,X00015,8,2015
Allerdale Borough Council,12402,Premises,Public Convenience Cleaning,Electricity,18/11/2015,142117,7.57,N POWER,X00015,8,2015
Allerdale Borough Council,12402,Premises,Public Convenience Cleaning,Electricity,18/11/2015,142118,60.42,N POWER,X00015,8,2015
Allerdale Borough Council,12402,Premises,Public Convenience Cleaning,Electricity,18/11/2015,142119,109.21,N POWER,X00015,8,2015
Allerdale Borough Council,12402,Premises,Public Convenience Cleaning,Electricity,18/11/2015,142120,46.63,N POWER,X00015,8,2015
Allerdale Borough Council,12402,Premises,Corporate Property Maintenance,Electricity,18/11/2015,142121,499.33,N POWER,X00015,8,2015
Allerdale Borough Council,12402,Premises,Corporate Property Maintenance,Electricity,18/11/2015,142122,316.91,N POWER,X00015,8,2015
Allerdale Borough Council,12402,Premises,Corporate Property Maintenance,Electricity,18/11/2015,142123,282.46,N POWER,X00015,8,2015
Allerdale Borough Council,12402,Premises,Corporate Property Maintenance,Electricity,18/11/2015,142124,113.60,N POWER,X00015,8,2015
Allerdale Borough Council,12402,Premises,Corporate Property Maintenance,Electricity,18/11/2015,142125,7.47,N POWER,X00015,8,2015
Allerdale Borough Council,12402,Premises,Corporate Property Maintenance,Electricity,18/11/2015,142126,11.70,N POWER,X00015,8,2015
Allerdale Borough Council,12402,Premises,Corporate Property Maintenance,Electricity,18/11/2015,142127,26.83,SOUTHERN ELECTRIC,X00018,8,2015
Allerdale Borough Council,12402,Premises,Public Convenience Cleaning,Electricity,18/11/2015,142128,7.47,N POWER,X00015,8,2015
Allerdale Borough Council,12403,Premises,Corporate Property Maintenance,Gas,18/11/2015,142129,10.27,EON,X00016,8,2015
Allerdale Borough Council,12301,Premises,Corporate Property Maintenance,Security,02/12/2015,142130,-126.66,ADT FIRE & SECURITY PLC,C00035,8,2015
Allerdale Borough Council,12402,Premises,Corporate Property Maintenance,Electricity,18/11/2015,142131,750.24,BRITISH GAS,X00039,8,2015
Allerdale Borough Council,12408,Premises,Corporate Property Maintenance,Water & Sewage,18/11/2015,142132,13.73,UNITED UTILITIES ,X00011,8,2015
Allerdale Borough Council,12408,Premises,Corporate Property Maintenance,Water & Sewage,18/11/2015,142133,9.58,UNITED UTILITIES ,X00011,8,2015
Allerdale Borough Council,12408,Premises,Public Convenience Cleaning,Water & Sewage,18/11/2015,142134,275.57,UNITED UTILITIES ,X00011,8,2015
Allerdale Borough Council,12402,Premises,Corporate Property Maintenance,Electricity,18/11/2015,142135,20.80,EON,X00016,8,2015
Allerdale Borough Council,15101,Supplies & Services,Corporate Property Maintenance,Equipment Costs,02/12/2015,142136,14.40,ARCO LIMITED - HEAD OFFICE HULL,A00045,8,2015
Allerdale Borough Council,15101,Supplies & Services,Corporate Property Maintenance,Equipment Costs,18/11/2015,142137,-14.40,ARCO LIMITED - HEAD OFFICE HULL,A00045,8,2015
Allerdale Borough Council,15506,Supplies & Services,Legal Services,Professional Services,25/11/2015,142138,"1,305.00",SELLICK PARTNERSHIP,A01993,8,2015
Allerdale Borough Council,10601,Employee Costs,Training,External Courses & Seminar Fees,25/11/2015,142139,368.00,BSI GROUP,A00923,8,2015
Allerdale Borough Council,10601,Employee Costs,Training,External Courses & Seminar Fees,25/11/2015,142140,368.00,BSI GROUP,A00923,8,2015
Allerdale Borough Council,15506,Supplies & Services,Food and Occupational Health,Professional Services,18/11/2015,142141,146.79,BEACON VETERINARY CENTRE,A00708,8,2015
Allerdale Borough Council,12401,Premises,Corporate Property Maintenance,Energy Management Charges,09/12/2015,142142,260.00,SCHNEIDER ELECTRIC LTD,A00859,8,2015
Allerdale Borough Council,14101,Transport,Homelessness,Vehicle Leasing,18/11/2015,142143,171.74,DOBIES VAUXHALL,A00254,8,2015
Allerdale Borough Council,12301,Premises,Corporate Property Maintenance,Security,02/12/2015,142144,192.00,ADT FIRE & SECURITY PLC,C00035,8,2015
Allerdale Borough Council,20101,Third Party Payments,Recycling,Cleansing Contract,18/11/2015,142145,-109.40,CUMBRIA WASTE MANAGEMENT LTD,A01304,8,2015
Allerdale Borough Council,20101,Third Party Payments,Recycling,Cleansing Contract,18/11/2015,142146,-303.74,CUMBRIA WASTE MANAGEMENT LTD,A01304,8,2015
Allerdale Borough Council,15103,Supplies & Services,Health and Safety,Purchase of Materials,02/12/2015,142147,47.66,POSTURITE (UK) LTD,A00336,8,2015
Allerdale Borough Council,14150,Transport,Gates Travel,General-Council Vehicles (Non-Capital),25/11/2015,142148,"2,396.80",GATES TRAVEL,A01525,8,2015
Allerdale Borough Council,16150,Supplies & Services,KMAG Enhancement Activity,General Promotions,25/11/2015,142149,113.00,CUMBERLAND & WESTMORLAND HERALD,A02031,8,2015
Allerdale Borough Council,16301,Supplies & Services,Sports Development,Reimbursement,25/11/2015,142150,"3,599.20",NETHERHALL SCHOOL,A00279,8,2015
Allerdale Borough Council,15506,Supplies & Services,Environmental Health Pay Group,Professional Services,25/11/2015,142151,150.00,Redacted information - included personal information ,A01969,8,2015
Allerdale Borough Council,10606,Employee Costs,Training,Accommodation,,142152,721.65,BARCLAYCARD COMMERCIAL ,X00207,8,2015
Allerdale Borough Council,20150,Third Party Payments,Building Control - Non-Chargeable,General Partnership Service Fees,25/11/2015,142153,25.00,THOMAS ARMSTRONG - CONSTRUCTION,C00003,8,2015
Allerdale Borough Council,15101,Supplies & Services,Solway Wetlands Project,Equipment Costs,02/12/2015,142154,149.85,YORKSHIRE PURCHASING ORGANISATION,A00747,8,2015
Allerdale Borough Council,15103,Supplies & Services,Solway Wetlands Project,Purchase of Materials,25/11/2015,142155,70.00,Redacted information - included personal information ,M00312,8,2015
Allerdale Borough Council,16150,Supplies & Services,Solway Wetlands Project,General Promotions,25/11/2015,142156,380.00,Redacted information - included personal information ,M00312,8,2015
Allerdale Borough Council,15405,Supplies & Services,Parking Services Pay Group,Use of External Printers,25/11/2015,142157,210.00,NAGELS MULTIGRAPHIC LTD,A00690,8,2015
Allerdale Borough Council,12302,Premises,Solway Coast AONB Core Funding,Building Cleaning,25/11/2015,142158,94.58,ORIAN SOLUTIONS LTD,A01814,8,2015
Allerdale Borough Council,20100,Third Party Payments,Parking Services Pay Group,Budget-Partnership Services,,142159,652.00,PATROL,A00952,8,2015
Allerdale Borough Council,15501,Supplies & Services,Planning and Development,Consultants Fees,25/11/2015,142160,500.00,ADAS UK LTD,A02018,8,2015
Allerdale Borough Council,15403,Supplies & Services,Chief Executive,Publications and Periodicals,25/11/2015,142161,10.80,P & D NEWSAGENTS,A00237,8,2015
Allerdale Borough Council,15808,Supplies & Services,Multi-functional Printers,Computer Consumables,02/12/2015,142162,232.95,HANDSET SOLUTIONS,A01900,8,2015
Allerdale Borough Council,15811,Supplies & Services,Parking Services Pay Group,Software Maintenance,02/12/2015,142163,196.00,METRIC GROUP LTD,A00568,8,2015
Allerdale Borough Council,12202,Premises,Corporate Property Maintenance,Electrical Repairs and Service,25/11/2015,142164,"1,215.00",WILKINSON JAMES PARTNERSHIP LIMITED,A02245,8,2015
Allerdale Borough Council,15750,Supplies & Services,IT Services,General Telecommunications Costs,25/11/2015,142165,950.00,INTRINSIC TECHNOLOGY LTD,A00902,8,2015
Allerdale Borough Council,12103,Premises,Coastal Protection and Inland Flooding,Grounds Maintenance,25/11/2015,142166,"2,410.00",JOHN ELLIOTT LIMITED,C00023,8,2015
Allerdale Borough Council,10401,Employee Costs,New IT Initiatives,Agency Staff Costs,25/11/2015,142167,"2,250.00",COMPUTER FUTURES,A02193,8,2015
Allerdale Borough Council,10401,Employee Costs,New IT Initiatives,Agency Staff Costs,25/11/2015,142168,"2,250.00",COMPUTER FUTURES,A02193,8,2015
Allerdale Borough Council,10401,Employee Costs,New IT Initiatives,Agency Staff Costs,25/11/2015,142169,"2,250.00",COMPUTER FUTURES,A02193,8,2015
Allerdale Borough Council,15502,Supplies & Services,Legal Services,Land Registry Fees,23/11/2015,142170,75.00,HM LAND REGISTRY,A00505,8,2015
Allerdale Borough Council,15502,Supplies & Services,Legal Services,Land Registry Fees,20/11/2015,142171,60.00,HM LAND REGISTRY,A00505,8,2015
Allerdale Borough Council,15502,Supplies & Services,Legal Services,Land Registry Fees,24/11/2015,142172,9.00,HM LAND REGISTRY ,A00505,8,2015
Allerdale Borough Council,54150,Capital Expenditure,Planning and Development,Extinct Capital Expenditure,25/11/2015,142173,15.00,BEATY & CO,M00352,8,2015
Allerdale Borough Council,81608,Balance Sheet,General Fund,Legal Provisions,25/11/2015,142174,"3,856.67",Redacted information - included personal information ,M00690,8,2015
Allerdale Borough Council,54105,Capital Expenditure,Disabled Facilities Grants,Grants  Private Individuals (Capital),25/11/2015,142175,"2,980.00",TOP NOTCH CONTRACTORS LTD,X00165,8,2015
Allerdale Borough Council,20150,Third Party Payments,Multi-storey Car Park,General Partnership Service Fees,25/11/2015,142176,"52,089.80",PARKSAFE,A00647,8,2015
Allerdale Borough Council,12402,Premises,Corporate Property Maintenance,Electricity,25/11/2015,142177,"3,532.10",N POWER ,X00015,8,2015
Allerdale Borough Council,12408,Premises,Corporate Property Maintenance,Water & Sewage,25/11/2015,142178,"1,775.25",UNITED UTILITIES,X00011,8,2015
Allerdale Borough Council,15805,Supplies & Services,IT Services,Computer Network,09/12/2015,142179,30.00,THUS/DEMON PLC/ (VODAFONE),A00598,8,2015
Allerdale Borough Council,15501,Supplies & Services,Revenue,Consultants Fees,25/11/2015,142180,150.00,ROSSENDALES LTD,A00964,8,2015
Allerdale Borough Council,12402,Premises,Corporate Property Maintenance,Electricity,25/11/2015,142181,"1,519.08",N POWER,X00015,8,2015
Allerdale Borough Council,12403,Premises,Corporate Property Maintenance,Gas,25/11/2015,142182,"1,479.72",BRITISH GAS,X00039,8,2015
Allerdale Borough Council,15601,Supplies & Services,Revenue,Postage,25/11/2015,142183,300.00,ROYAL MAIL LETTERS,X00021,8,2015
Allerdale Borough Council,14101,Transport,Mayoral Services,Vehicle Leasing,25/11/2015,142184,15.00,ACE TAXIS,A01927,8,2015
Allerdale Borough Council,10401,Employee Costs,Commissioning Support Pay Group,Agency Staff Costs,25/11/2015,142185,"10,500.00",CASH FRIDAY/LORD SEARCH & SELECTION LTD,A02108,8,2015
Allerdale Borough Council,15101,Supplies & Services,Solway Wetlands Project,Equipment Costs,25/11/2015,142186,206.64,FSC (FIELD STUDIES COUNCIL),A01215,8,2015
Allerdale Borough Council,15101,Supplies & Services,Solway Wetlands Project,Equipment Costs,25/11/2015,142187,174.90,WATKINS & DONCASTER,A01847,8,2015
Allerdale Borough Council,15101,Supplies & Services,Solway Wetlands Project,Equipment Costs,25/11/2015,142188,74.19,THE OUTDOORS COMPANY,A01066,8,2015
Allerdale Borough Council,15103,Supplies & Services,Solway Wetlands Project,Purchase of Materials,25/11/2015,142189,544.64,YORKSHIRE PURCHASING ORGANISATION,A00747,8,2015
Allerdale Borough Council,15101,Supplies & Services,Solway Wetlands Project,Equipment Costs,25/11/2015,142190,158.56,YORKSHIRE PURCHASING ORGANISATION,A00747,8,2015
Allerdale Borough Council,12307,Premises,Solway Wetlands Project,Fixtures and Fittings,25/11/2015,142191,649.98,CARLISLE GLASS LTD,C00011,8,2015
Allerdale Borough Council,14202,Transport,Solway Wetlands Project,Hire Car and petrol,25/11/2015,142192,62.50,ENTERPRISE RENT A CAR,A01367,8,2015
Allerdale Borough Council,14101,Transport,Mayoral Services,Vehicle Leasing,25/11/2015,142193,105.00,ACE TAXIS,A01927,8,2015
Allerdale Borough Council,15101,Supplies & Services,Building Control - Chargeable,Equipment Costs,09/12/2015,142194,111.67,MISCO,A00125,8,2015
Allerdale Borough Council,15501,Supplies & Services,Planning and Development,Consultants Fees,25/11/2015,142195,"4,894.00",FORTISMERE ASSOCIATES,A02149,8,2015
Allerdale Borough Council,10401,Employee Costs,IT Services,Agency Staff Costs,25/11/2015,142196,486.49,ADECCO RECRUITMENT,A00188,8,2015
Allerdale Borough Council,10401,Employee Costs,Building Control - Chargeable,Agency Staff Costs,25/11/2015,142197,225.00,THE OYSTER PARTNERSHIP LTD,C00118,8,2015
Allerdale Borough Council,10401,Employee Costs,Building Control - Chargeable,Agency Staff Costs,09/12/2015,142198,90.00,THE OYSTER PARTNERSHIP LTD,C00118,8,2015
Allerdale Borough Council,14105,Transport,Parking Services Pay Group,"Fuel, Lubricants & Consumables",,142199,418.78,BP OIL UK LTD,X00022,8,2015
Allerdale Borough Council,10401,Employee Costs,Building Control - Chargeable,Agency Staff Costs,25/11/2015,142200,45.00,THE OYSTER PARTNERSHIP LTD,C00118,8,2015
Allerdale Borough Council,12103,Premises,Coastal Protection and Inland Flooding,Grounds Maintenance,25/11/2015,142201,"9,259.50",WYG ENGINEERING LTD,A00155,8,2015
Allerdale Borough Council,15506,Supplies & Services,Housing Needs Survey,Professional Services,25/11/2015,142202,"26,896.45",ARC4 LIMITED,A02266,8,2015
Allerdale Borough Council,15101,Supplies & Services,Public Convenience Cleaning,Equipment Costs,25/11/2015,142203,136.48,WF HYGIENE & CLEANING SUPPLIES,A01794,8,2015
Allerdale Borough Council,15405,Supplies & Services,Solway Coast AONB Core Funding,Use of External Printers,25/11/2015,142204,"1,045.00",MICHAELA CORRIE GRAPHIC DESIGN,A00513,8,2015
Allerdale Borough Council,12101,Premises,Corporate Property Maintenance,External Maintenance & Decoration,25/11/2015,142205,226.67,W G MACKAY LTD,A01711,8,2015
Allerdale Borough Council,12101,Premises,Corporate Property Maintenance,External Maintenance & Decoration,25/11/2015,142206,226.67,W G MACKAY LTD,A01711,8,2015
Allerdale Borough Council,12301,Premises,Corporate Property Maintenance,Security,09/12/2015,142207,"2,159.60",G4S SECURE SOLUTIONS,A01597,8,2015
Allerdale Borough Council,15501,Supplies & Services,Estates,Consultants Fees,02/12/2015,142208,"1,706.20",HAYS SPECIALIST RECRUITMENT LTD,A00280,8,2015
Allerdale Borough Council,15802,Supplies & Services,Parking Services Pay Group,Hardware Maintenance,09/12/2015,142209,"3,000.40",CHIPSIDE LIMITED,A00004,8,2015
Allerdale Borough Council,15811,Supplies & Services,Parking Services Pay Group,Software Maintenance,09/12/2015,142210,"3,390.00",CHIPSIDE LIMITED,A00004,8,2015
Allerdale Borough Council,15501,Supplies & Services,Estates,Consultants Fees,09/12/2015,142211,"1,614.85",HAYS SPECIALIST RECRUITMENT LTD,A00280,8,2015
Allerdale Borough Council,15101,Supplies & Services,Parking Services Pay Group,Equipment Costs,25/11/2015,142212,11.00,ARCO LIMITED - HEAD OFFICE HULL,A00045,8,2015
Allerdale Borough Council,15101,Supplies & Services,Purchase of Equipment (Enveloper),Equipment Costs,03/12/2015,142213,"1,849.00",TWOFOLD LTD,A00317,8,2015
Allerdale Borough Council,14101,Transport,Mayoral Services,Vehicle Leasing,25/11/2015,142214,85.00,ACE TAXIS,A01927,8,2015
Allerdale Borough Council,14101,Transport,Mayoral Services,Vehicle Leasing,25/11/2015,142215,15.00,ACE TAXIS,A01927,8,2015
Allerdale Borough Council,15101,Supplies & Services,Corporate Property Maintenance,Equipment Costs,24/11/2015,142216,138.80,BOOKER CASH & CARRY,A01419,8,2015
Allerdale Borough Council,10401,Employee Costs,Environmental Services Pay Group,Agency Staff Costs,16/12/2015,142217,"1,750.00",PRACTICUS LTD,A02237,8,2015
Allerdale Borough Council,15550,Supplies & Services,Arts Development,General-Service Related Fees,25/11/2015,142218,"3,420.00",INSPIRA,M00590,8,2015
Allerdale Borough Council,15512,Supplies & Services,Animal Welfare,Kennelling,25/11/2015,142219,"7,923.00",WHINMILL FARM CANINE CENTRE,A00117,8,2015
Allerdale Borough Council,14101,Transport,Workington Nature Partnership,Vehicle Leasing,25/11/2015,142220,"1,000.00",DOBIES VAUXHALL,A00254,8,2015
Allerdale Borough Council,16350,Supplies & Services,Homelessness,Miscellaneous Expenses,25/11/2015,142221,500.00,YOUR HOUSING GROUP,M00396,8,2015
Allerdale Borough Council,15506,Supplies & Services,Communications and Marketing,Professional Services,25/11/2015,142222,"1,800.00",ELSWORTH COMMUNICATIONS,A01869,8,2015
Allerdale Borough Council,16100,Supplies & Services,Communications and Marketing,Budget-Advertising and Promotions,25/11/2015,142223,180.00,FIRPRESS PRINTERS,A00063,8,2015
Allerdale Borough Council,16150,Supplies & Services,Solway Wetlands Project,General Promotions,25/11/2015,142224,380.00,Redacted information - included personal information ,M00312,8,2015
Allerdale Borough Council,20301,Third Party Payments,Parks and Grounds Maintenance,Contract Services-Parks & Open Spaces,25/11/2015,142225,"37,315.00",ISS WATERERS LANDSCAPE,C00044,8,2015
Allerdale Borough Council,15501,Supplies & Services,Estates,Consultants Fees,16/12/2015,142226,"1,626.55",HAYS SPECIALIST RECRUITMENT LTD,A00280,8,2015
Allerdale Borough Council,16001,Supplies & Services,Banking and Interest,Bank Charges and Fees,25/11/2015,142227,15.25,ALLPAY.NET LIMITED,A00714,8,2015
Allerdale Borough Council,16001,Supplies & Services,Banking and Interest,Bank Charges and Fees,25/11/2015,142228,22.10,ALLPAY.NET LIMITED,A00714,8,2015
Allerdale Borough Council,16001,Supplies & Services,Banking and Interest,Bank Charges and Fees,25/11/2015,142229,36.79,ALLPAY.NET LIMITED,A00714,8,2015
Allerdale Borough Council,16001,Supplies & Services,Banking and Interest,Bank Charges and Fees,25/11/2015,142230,15.68,ALLPAY.NET LIMITED,A00714,8,2015
Allerdale Borough Council,16001,Supplies & Services,Banking and Interest,Bank Charges and Fees,25/11/2015,142231,20.27,ALLPAY.NET LIMITED,A00714,8,2015
Allerdale Borough Council,12101,Premises,Corporate Property Maintenance,External Maintenance & Decoration,25/11/2015,142232,"32,875.00",W HUGHES & SON LTD,C00160,8,2015
Allerdale Borough Council,16001,Supplies & Services,Banking and Interest,Bank Charges and Fees,25/11/2015,142233,69.60,ALLPAY.NET LIMITED,A00714,8,2015
Allerdale Borough Council,16001,Supplies & Services,Banking and Interest,Bank Charges and Fees,25/11/2015,142234,34.19,ALLPAY.NET LIMITED,A00714,8,2015
Allerdale Borough Council,16001,Supplies & Services,Banking and Interest,Bank Charges and Fees,25/11/2015,142235,22.23,ALLPAY.NET LIMITED,A00714,8,2015
Allerdale Borough Council,16001,Supplies & Services,Banking and Interest,Bank Charges and Fees,25/11/2015,142236,23.00,ALLPAY.NET LIMITED,A00714,8,2015
Allerdale Borough Council,10401,Employee Costs,IT - New Initiatives,Agency Staff Costs,25/11/2015,142237,812.50,HAYS SPECIALIST RECRUITMENT LTD,A00280,8,2015
Allerdale Borough Council,10401,Employee Costs,IT - New Initiatives,Agency Staff Costs,25/11/2015,142238,975.00,HAYS SPECIALIST RECRUITMENT LTD,A00280,8,2015
Allerdale Borough Council,10401,Employee Costs,IT - New Initiatives,Agency Staff Costs,25/11/2015,142239,"1,137.50",HAYS SPECIALIST RECRUITMENT LTD,A00280,8,2015
Allerdale Borough Council,10401,Employee Costs,IT - New Initiatives,Agency Staff Costs,25/11/2015,142240,975.00,HAYS SPECIALIST RECRUITMENT LTD,A00280,8,2015
Allerdale Borough Council,10401,Employee Costs,IT - New Initiatives,Agency Staff Costs,02/12/2015,142241,975.00,HAYS SPECIALIST RECRUITMENT LTD,A00280,8,2015
Allerdale Borough Council,10401,Employee Costs,IT - New Initiatives,Agency Staff Costs,09/12/2015,142242,812.50,HAYS SPECIALIST RECRUITMENT LTD,A00280,8,2015
Allerdale Borough Council,10401,Employee Costs,IT - New Initiatives,Agency Staff Costs,16/12/2015,142243,812.50,HAYS SPECIALIST RECRUITMENT LTD,A00280,8,2015
Allerdale Borough Council,15802,Supplies & Services,Parking Services Pay Group,Hardware Maintenance,25/11/2015,142244,563.73,COBALT TELEPHONE TECHNOLOGY,A01008,8,2015
Allerdale Borough Council,12408,Premises,Corporate Property Maintenance,Water & Sewage,25/11/2015,142245,10.82,UNITED UTILITIES ,X00011,8,2015
Allerdale Borough Council,12408,Premises,Public Convenience Cleaning,Water & Sewage,25/11/2015,142246,175.44,UNITED UTILITIES ,X00011,8,2015
Allerdale Borough Council,12408,Premises,Corporate Property Maintenance,Water & Sewage,25/11/2015,142247,60.38,UNITED UTILITIES ,X00011,8,2015
Allerdale Borough Council,12301,Premises,Corporate Property Maintenance,Security,02/12/2015,142248,-114.00,ADT FIRE & SECURITY PLC,C00035,8,2015
Allerdale Borough Council,12403,Premises,Corporate Property Maintenance,Gas,25/11/2015,142249,275.71,BRITISH GAS,X00039,8,2015
Allerdale Borough Council,12402,Premises,Corporate Property Maintenance,Electricity,25/11/2015,142250,32.61,BES COMMERCIAL ELECTRICITY LTD,X00243,8,2015
Allerdale Borough Council,35106,Income,Homelessness,Dwellings Income,25/11/2015,142251,43.32,ALLERDALE ,A00342,8,2015
Allerdale Borough Council,15514,Supplies & Services,Mayor's Fund,Public Entertainment,25/11/2015,142252,10.80,P & D NEWSAGENTS,A00237,8,2015
Allerdale Borough Council,15701,Supplies & Services,IT Services,Installation Costs,25/11/2015,142253,708.00,CONNEXIONS GROUP LTD,C00060,8,2015
Allerdale Borough Council,16101,Supplies & Services,Planning and Development,Statutory Notices,25/11/2015,142254,347.12,CUMBRIA CC - 3C STUDIO,A00070,8,2015
Allerdale Borough Council,15701,Supplies & Services,IT Services,Installation Costs,25/11/2015,142255,600.35,CONNEXIONS GROUP LTD,C00060,8,2015
Allerdale Borough Council,12301,Premises,Corporate Property Maintenance,Security,02/12/2015,142256,184.00,ADT FIRE & SECURITY PLC,C00035,8,2015
Allerdale Borough Council,15506,Supplies & Services,Environmental Initiatives,Professional Services,25/11/2015,142257,600.00,GROUNDWORK NORTH EAST,A01805,8,2015
Allerdale Borough Council,12202,Premises,Industrial Units,Electrical Repairs and Service,25/11/2015,142258,"2,345.00",J & J ELECTRICAL (CUMBRIA) LTD,C00038,8,2015
Allerdale Borough Council,54105,Capital Expenditure,Disabled Facilities Grants,Grants  Private Individuals (Capital),25/11/2015,142259,850.00,CONISTON CONSULTANTS LTD,X00210,8,2015
Allerdale Borough Council,54105,Capital Expenditure,Disabled Facilities Grants,Grants  Private Individuals (Capital),25/11/2015,142260,"3,257.00",Redacted information - included personal information ,X00115,8,2015
Allerdale Borough Council,54105,Capital Expenditure,Disabled Facilities Grants,Grants  Private Individuals (Capital),25/11/2015,142261,"1,705.00",HANDICARE ACCESSIBILITY LTD,X00211,8,2015
Allerdale Borough Council,54105,Capital Expenditure,Cluster of Empty Homes,Grants  Private Individuals (Capital),25/11/2015,142262,"2,088.10",Redacted information - included personal information ,M00732,8,2015
Allerdale Borough Council,12101,Premises,Car Parks Inspection & Maintenance,External Maintenance & Decoration,25/11/2015,142263,842.00,ASHCROFT PLANT (CUMBRIA) LTD,C00018,8,2015
Allerdale Borough Council,12101,Premises,Car Parks Inspection & Maintenance,External Maintenance & Decoration,25/11/2015,142264,"1,241.00",Redacted information - included personal information ,C00008,8,2015
Allerdale Borough Council,15550,Supplies & Services,Financial Planning & Economic Growth,General-Service Related Fees,02/12/2015,142265,"5,400.00",BIZCAT UK LIMITED,A02214,8,2015
Allerdale Borough Council,12101,Premises,Corporate Property Maintenance,External Maintenance & Decoration,25/11/2015,142266,50.00,W G MACKAY LTD,A01711,8,2015
Allerdale Borough Council,12202,Premises,Public Convenience Cleaning,Electrical Repairs and Service,02/12/2015,142267,"1,732.40",J & J ELECTRICAL (CUMBRIA) LTD,C00038,8,2015
Allerdale Borough Council,16150,Supplies & Services,"The Hub, Workington Town Centre",General Promotions,25/11/2015,142268,45.25,Redacted information - included personal information ,M00808,8,2015
Allerdale Borough Council,33118,Income,Off-street - Owned,Car Parks - Season Tickets Income,25/11/2015,142269,117.38,Redacted information - included personal information ,M00809,8,2015
Allerdale Borough Council,10601,Employee Costs,Training,External Courses & Seminar Fees,25/11/2015,142270,315.00,CUMBRIA C.I.P.D.,A00946,8,2015
Allerdale Borough Council,16350,Supplies & Services,Chief Executive,Miscellaneous Expenses,02/12/2015,142271,45.00,Redacted information - included personal information ,A02261,8,2015
Allerdale Borough Council,12408,Premises,Public Convenience Cleaning,Water & Sewage,25/11/2015,142272,40.66,UNITED UTILITIES ,X00011,8,2015
Allerdale Borough Council,15804,Supplies & Services,IT Services,Computer Data Lines B.T.,25/11/2015,142273,"3,009.13",VODAFONE (PREV CABLE & WIRELESS),A00934,8,2015
Allerdale Borough Council,15501,Supplies & Services,Planning and Development,Consultants Fees,25/11/2015,142274,"3,136.75",EDEN ENVIRONMENT LTD,A01632,8,2015
Allerdale Borough Council,16150,Supplies & Services,Solway AONB Other Projects,General Promotions,25/11/2015,142275,143.13,CARRS BILLINGTON AGRICULTURE,A00884,8,2015
Allerdale Borough Council,15516,Supplies & Services,Insurances,Insurance Services,02/12/2015,142276,"4,950.00",ZURICH MUNICIPAL,A00429,8,2015
Allerdale Borough Council,16150,Supplies & Services,KMAG Enhancement Activity,General Promotions,02/12/2015,142277,51.04,MCKANES PRINTERS,A01507,8,2015
Allerdale Borough Council,15405,Supplies & Services,Parking Services Pay Group,Use of External Printers,02/12/2015,142278,845.00,NAGELS MULTIGRAPHIC LTD,A00690,8,2015
Allerdale Borough Council,20150,Third Party Payments,Parking Services Pay Group,General Partnership Service Fees,02/12/2015,142279,866.00,BRITISH PARKING ASSOCIATION,A00468,8,2015
Allerdale Borough Council,15303,Supplies & Services,Food and Occupational Health,Laundry,02/12/2015,142280,104.92,BERENDSEN UK LTD,A00027,8,2015
Allerdale Borough Council,15811,Supplies & Services,Parking Services Pay Group,Software Maintenance,21/12/2015,142281,43.20,CHIPSIDE LIMITED,A00004,8,2015
Allerdale Borough Council,16150,Supplies & Services,Solway AONB Other Projects,General Promotions,02/12/2015,142282,"1,500.00",ISS WATERERS LANDSCAPE,C00044,8,2015
Allerdale Borough Council,15102,Supplies & Services,Off-street - Owned,Equipment Repair & Maintenance,02/12/2015,142283,170.30,FCC ENVIRONMENT SERVICES (FOCSA),A00085,8,2015
Allerdale Borough Council,15506,Supplies & Services,Food and Occupational Health,Professional Services,09/12/2015,142284,37.59,PUBLIC HEALTH ENGLAND,A01839,8,2015
Allerdale Borough Council,12302,Premises,Solway Coast AONB Core Funding,Building Cleaning,09/12/2015,142285,94.58,ORIAN SOLUTIONS LTD,A01814,8,2015
Allerdale Borough Council,10601,Employee Costs,Training,External Courses & Seminar Fees,02/12/2015,142286,180.00,CIPFA NORTH WEST (VARIOUS TREASURER'S),A01792,8,2015
Allerdale Borough Council,10601,Employee Costs,Training,External Courses & Seminar Fees,02/12/2015,142287,39.00,ACT NOW TRAINING LTD,A00666,8,2015
Allerdale Borough Council,10202,Employee Costs,Human Resources Pay Group,Medical Screening,09/12/2015,142288,316.73,WELLWORK LTD,A00029,8,2015
Allerdale Borough Council,10106,Employee Costs,Training,Statutory Sick Pay,09/12/2015,142289,640.00,RICARDO-AEA LTD,A01816,8,2015
Allerdale Borough Council,10601,Employee Costs,Training,External Courses & Seminar Fees,02/12/2015,142290,22.20,K&R BADGES LIMITED,A01328,8,2015
Allerdale Borough Council,10601,Employee Costs,Training,External Courses & Seminar Fees,02/12/2015,142291,30.00,MERSEY PORT HEALTH AUTHORITY (LIVERPOOL CITY COUNCIL),A02234,8,2015
Allerdale Borough Council,10601,Employee Costs,Training,External Courses & Seminar Fees,02/12/2015,142292,200.00,UNIVERSITY OF SALFORD,A00617,8,2015
Allerdale Borough Council,16150,Supplies & Services,Solway Wetlands Project,General Promotions,02/12/2015,142293,"38,769.55",GRAMPUS HERITAGE & TRAINING LTD,A01890,8,2015
Allerdale Borough Council,15405,Supplies & Services,Elections,Use of External Printers,02/12/2015,142294,140.00,FIRPRESS PRINTERS,A00063,8,2015
Allerdale Borough Council,15812,Supplies & Services,Shared ICT Costs,Software Development,16/12/2015,142295,"4,978.53",NETCENTRIX LIMITED,A00106,8,2015
Allerdale Borough Council,15812,Supplies & Services,Shared ICT Costs,Software Development,16/12/2015,142296,"21,961.14",NETCENTRIX LIMITED,A00106,8,2015
Allerdale Borough Council,15812,Supplies & Services,Shared ICT Costs,Software Development,16/12/2015,142297,"10,226.19",NETCENTRIX LIMITED,A00106,8,2015
Allerdale Borough Council,15812,Supplies & Services,Shared ICT Costs,Software Development,16/12/2015,142298,"21,961.14",NETCENTRIX LIMITED,A00106,8,2015
Allerdale Borough Council,10100,Employee Costs,Customer Services Pay Group,Budget-Salaries,02/12/2015,142299,493.58,ADECCO RECRUITMENT,A00188,8,2015
Allerdale Borough Council,10601,Employee Costs,Training,External Courses & Seminar Fees,09/12/2015,142300,105.00,IMPROVEMENT DEVELOPMENT GROWTH,A01529,8,2015
Allerdale Borough Council,14101,Transport,Shared IT Services Pay Group,Vehicle Leasing,06/01/2016,142301,199.00,ARNOLD CLARK FINANCE LIMITED,A01781,8,2015
Allerdale Borough Council,10401,Employee Costs,Building Control - Chargeable,Agency Staff Costs,16/12/2015,142302,112.50,THE OYSTER PARTNERSHIP LTD,C00118,8,2015
Allerdale Borough Council,10401,Employee Costs,New IT Initiatives,Agency Staff Costs,02/12/2015,142303,"2,250.00",COMPUTER FUTURES,A02193,8,2015
Allerdale Borough Council,10601,Employee Costs,Training,External Courses & Seminar Fees,16/12/2015,142304,600.00,MAPCHESTER LTD,A02255,8,2015
Allerdale Borough Council,15808,Supplies & Services,Multi-functional Printers,Computer Consumables,09/12/2015,142305,211.00,ANTALIS LIMITED,A00122,8,2015
Allerdale Borough Council,15812,Supplies & Services,IT Services,Software Development,,142306,573.58,BARCLAYCARD COMMERCIAL,X00207,8,2015
Allerdale Borough Council,15203,Supplies & Services,Members Services,Catering Costs and Consumables,02/12/2015,142307,58.50,MAGGIES BAKERY,A01685,8,2015
Allerdale Borough Council,14104,Transport,Public Convenience Cleaning,Repairs & Maintenance,02/12/2015,142308,18.02,FCC ENVIRONMENT SERVICES (FOCSA),A00085,8,2015
Allerdale Borough Council,10401,Employee Costs,Shared IT Services Pay Group,Agency Staff Costs,02/12/2015,142309,483.22,ADECCO RECRUITMENT,A00188,8,2015
Allerdale Borough Council,15501,Supplies & Services,Estates,Consultants Fees,16/12/2015,142310,"1,600.00",HAYS SPECIALIST RECRUITMENT LTD,A00280,8,2015
Allerdale Borough Council,16102,Supplies & Services,Town Centre Management,Regeneration Initiatives,02/12/2015,142311,370.00,SLUG & BULL,A01974,8,2015
Allerdale Borough Council,15402,Supplies & Services,Customer Services Pay Group,Photocopier Charges,09/12/2015,142312,8.20,RICOH UK LTD,A00037,8,2015
Allerdale Borough Council,15402,Supplies & Services,Customer Services Pay Group,Photocopier Charges,09/12/2015,142313,10.40,RICOH UK LTD,A00037,8,2015
Allerdale Borough Council,15903,Supplies & Services,Benefits,Courses & Seminars,16/12/2015,142314,750.00,HBINFO LTD,A00858,8,2015
Allerdale Borough Council,12309,Premises,Corporate Property Maintenance,Fire and Safety,09/12/2015,142315,77.00,CUMBRIAN SYSTEMS,C00062,8,2015
Allerdale Borough Council,15514,Supplies & Services,Mayor's Fund,Public Entertainment,02/12/2015,142316,92.50,PBA20 POPPY APPEAL WORKINGTON RBL,M00593,8,2015
Allerdale Borough Council,16300,Supplies & Services,Economic Regeneration,Budget-Miscellaneous,02/12/2015,142317,184.00,THE WHITE PAPER CONFERENCE CO,A00780,8,2015
Allerdale Borough Council,16102,Supplies & Services,Town Centre Management,Regeneration Initiatives,09/12/2015,142318,225.00,POD (NORTH WEST) LIMITED,A01977,8,2015
Allerdale Borough Council,12402,Premises,Corporate Property Maintenance,Electricity,16/12/2015,142319,90.00,AMEY METERING LIMITED,A01503,8,2015
Allerdale Borough Council,20150,Third Party Payments,Parking Services Pay Group,General Partnership Service Fees,02/12/2015,142320,10.21,Redacted information - included personal information ,M00810,8,2015
Allerdale Borough Council,16150,Supplies & Services,Solway Wetlands Project,General Promotions,02/12/2015,142321,36.00,Redacted information - included personal information ,M00524,8,2015
Allerdale Borough Council,16102,Supplies & Services,Town Centre Management,Regeneration Initiatives,02/12/2015,142322,125.00,COCKERMOUTH BY CANDLELIGHT,M00811,8,2015
Allerdale Borough Council,14105,Transport,Animal Welfare,"Fuel, Lubricants & Consumables",02/12/2015,142323,9.40,HI-Q TYRESERVICES,A00313,8,2015
Allerdale Borough Council,15810,Supplies & Services,IT Services,Software Licences,02/12/2015,142324,900.00,VAADHOO LIMITED,A02268,8,2015
Allerdale Borough Council,10401,Employee Costs,Environmental Services Pay Group,Agency Staff Costs,16/12/2015,142325,"1,750.00",PRACTICUS LTD,A02237,8,2015
Allerdale Borough Council,15501,Supplies & Services,Estates,Consultants Fees,16/12/2015,142326,45.00,HAYS SPECIALIST RECRUITMENT LTD,A00280,8,2015
Allerdale Borough Council,15506,Supplies & Services,Legal Services,Professional Services,02/12/2015,142327,250.00,BURNETTS SOLICITORS,A00129,8,2015
Allerdale Borough Council,16150,Supplies & Services,Solway Wetlands Project,General Promotions,02/12/2015,142328,250.00,STEVE BLAKE PHOTOGRAPHY,A01930,8,2015
Allerdale Borough Council,15101,Supplies & Services,Public Convenience Cleaning,Equipment Costs,02/12/2015,142329,132.84,WF HYGIENE & CLEANING SUPPLIES,A01794,8,2015
Allerdale Borough Council,16150,Supplies & Services,Town Centre Management,General Promotions,02/12/2015,142330,"7,850.00",MARYPORT FESTIVALS LTD,A00338,8,2015
Allerdale Borough Council,16150,Supplies & Services,Town Centre Management,General Promotions,02/12/2015,142331,"1,600.00",MARYPORT FESTIVALS LTD,A00338,8,2015
Allerdale Borough Council,16150,Supplies & Services,Town Centre Management,General Promotions,02/12/2015,142332,"6,000.00",MARYPORT FESTIVALS LTD,A00338,8,2015
Allerdale Borough Council,16150,Supplies & Services,Town Centre Management,General Promotions,02/12/2015,142333,125.00,MARYPORT FESTIVALS LTD,A00338,8,2015
Allerdale Borough Council,16350,Supplies & Services,Chief Executive,Miscellaneous Expenses,09/12/2015,142334,15.00,FIRPRESS PRINTERS,A00063,8,2015
Allerdale Borough Council,16102,Supplies & Services,Town Centre Management,Regeneration Initiatives,02/12/2015,142335,336.00,THE COCKERMOUTH POST,A01713,8,2015
Allerdale Borough Council,75103,Holding and Control Accounts,Payroll Suspense Account,PAYROLL November 15 Travel & Subsistence  ,,,"13,280.88",INLAND REVENUE,X00038,8,2015
